{"text_format":"1","workbook":"xlsx","n_sheets":1,"sheets":["Blad1"],"not_rendered":{"charts":0,"images":2,"macros":0,"external_links":0,"defined_names":1,"comments":0,"pivot_tables":0},"unopened":[],"bounds":{"document_bytes":16777216,"sheet_cells":100000,"rows_first":2000,"rows_last":500,"rows_between":2000,"halvings":0,"cell_chars":16384,"cell_head_chars":4096},"cells_cut":0,"cells_raw":0,"read":"whole","date_system":"1900"}

{"sheet":"Blad1","index":0,"n_rows":57,"n_cols":28,"rows_kept":57,"cut":false,"hidden":false,"merged":[[0,20,0,21],[2,0,3,11],[0,0,1,11],[8,9,8,10],[66,9,66,10],[46,9,46,10],[48,9,48,10],[44,9,44,10]]}
[{"$f":"HLOOKUP($P$1,$Y$1:$AB$54,53)","v":"ENQUIRY FORM"},null,null,null,null,null,null,null,null,null,null,null,null,null,null,2,"Language",null,null,"Ver.","2012-10-09",null,null,null,1,2,3,4]
[null,null,null,null,null,null,null,null,null,null,null,null,null,null,null,null,"1=svensk 2=english 3=French 4=German",null,null,null,null,null,null,2,"KUND:","CLIENT:","CLIENT:","Kunde:"]
[{"$f":"HLOOKUP($P$1,$Y$1:$AB$54,54)","v":"BIG SPACE CAR FRAME KIT"},null,null,null,null,null,null,null,null,null,null,null,null,null,null,null,null,null,null,null,null,null,null,3,"MÄRKES:","MARK:","REF:","Projekt:"]
[null,null,null,null,null,null,null,null,null,null,null,null,null,null,null,null,null,null,null,null,null,null,null,4,"DATUM:","DATE:","DATE:","Datum:"]
[null,null,null,null,null,null,null,null,null,null,null,null,null,null,null,null,null,null,null,null,null,null,null,5,"ORDER:","ORDER:","ORDER:","Kommission:"]
[null,null,null,null,null,null,null,null,null,null,null,null,null,null,null,null,null,null,null,null,null,null,null,6,"Last","Load","Charge Utile","Nutzlast"]
[null,{"$f":"HLOOKUP($P$1,$Y$1:$AB$50,5)","v":"ORDER:"},null,null,null,null,null,null,{"$f":"HLOOKUP($P$1,$Y$1:$AB$50,2)","v":"CLIENT:"},null,null,null,null,null,null,null,null,null,null,null,null,null,null,7,"Korg+dörr","Car+door","Cabine+porte","Kabine + Türen"]
[null,null,null,null,null,null,null,null,null,null,null,null,null,null,null,null,null,null,null,null,null,null,null,8,"Lyfthöjd","Travel","Course","Förderhöhe"]
[null,{"$f":"HLOOKUP($P$1,$Y$1:$AB$50,3)","v":"MARK:"},null,null,null,null,null,null,{"$f":"HLOOKUP($P$1,$Y$1:$AB$50,4)","v":"DATE:"},{"$f":"NOW()","v":"2012-10-09T16:01:19.680"},null,null,null,null,null,null,null,null,null,null,null,null,null,9,"Gropdjup","Pit Depth","x","Schachtgrube"]
[null,null,null,null,null,null,null,null,null,null,null,null,null,null,null,null,null,null,null,null,null,null,null,10,"Topphöjd","Headroom","x","Schachtkopf"]
["DATA:",{"$f":"HLOOKUP($P$1,$Y$1:$AB$50,6)","v":"Load"},null,null,null,null,null,null,"Q =",null,"kg",null,null,null,null,null,null,null,null,null,null,null,null,11,"Schaktbredd","Shaft width","x","Schachtbreite"]
[null,{"$f":"HLOOKUP($P$1,$Y$1:$AB$50,7)","v":"Car+door"},null,null,null,null,null,null,"P2 =",null,"kg",null,null,null,null,null,null,null,null,null,null,null,null,12,"Schaktdjup","Shaft depth","x","Schachttiefe"]
[null,{"$f":"HLOOKUP($P$1,$Y$1:$AB$50,8)","v":"Travel"},null,null,null,null,null,null,"Lc =",null,"mm",null,null,null,null,null,null,null,null,null,null,null,null,13,"Hastighet","Speed","x","Geschwindigkeit"]
[null,{"$f":"HLOOKUP($P$1,$Y$1:$AB$50,9)","v":"Pit Depth"},null,null,null,null,null,null,"PD=",null,"mm","min. 150mm",null,null,null,null,null,null,null,null,null,null,null,14]
[null,{"$f":"HLOOKUP($P$1,$Y$1:$AB$50,10)","v":"Headroom"},null,null,null,null,null,null,"H=",null,"mm","min. 2500mm",null,null,null,null,null,null,null,null,null,null,null,15,"HISSKORG:","CABIN:","x","Kabine"]
[null,{"$f":"HLOOKUP($P$1,$Y$1:$AB$50,11)","v":"Shaft width"},null,null,null,null,null,null,"SW=",null,"mm",null,null,null,null,null,null,null,null,null,null,null,null,16,"Korgbredd inv.","Cabin width internal","x","Kabinenbreite innen"]
[null,{"$f":"HLOOKUP($P$1,$Y$1:$AB$50,12)","v":"Shaft depth"},null,null,null,null,null,null,"SD=",null,"mm",null,null,null,null,null,null,null,null,null,null,null,null,17,"Korgdjup inv.","Cabin depth internal","x","Kabinentiefe innen"]
[null,{"$f":"HLOOKUP($P$1,$Y$1:$AB$50,13)","v":"Speed"},null,null,null,null,null,null,"V=",null,"m/s","max.0,5m/s",null,null,null,null,null,null,null,null,null,null,null,18,"Korghöjd inv.","Cabin height internal","x","Kabinenhöhe innen"]
[null,null,null,null,null,null,null,null,null,null,null,null,null,null,null,null,null,null,null,null,null,null,null,19,"Tjocklek korgvägg","Thickness cabin wall","x","Wandstärke"]
[{"$f":"HLOOKUP($P$1,$Y$1:$AB$50,15)","v":"CABIN:"},{"$f":"HLOOKUP($P$1,$Y$1:$AB$50,16)","v":"Cabin width internal"},null,null,null,null,null,null,"CWI=",null,"mm",null,null,null,null,null,null,null,null,null,null,null,null,20,"Golvtjocklek","Thickness of floor","x","Kabinenboden"]
[null,{"$f":"HLOOKUP($P$1,$Y$1:$AB$50,17)","v":"Cabin depth internal"},null,null,null,null,null,null,"CDI=",null,"mm",null,null,null,null,null,null,null,null,null,null,null,null,21,"Korgtak tjocklek","Thickness of cabin roof","x","Kabinendach"]
[null,{"$f":"HLOOKUP($P$1,$Y$1:$AB$50,18)","v":"Cabin height internal"},null,null,null,null,null,null,"CHI=",null,"mm",null,null,null,null,null,null,null,null,null,null,null,null,22,"ÖVRIGT:","OTHER:","x","Anderes:"]
[null,{"$f":"HLOOKUP($P$1,$Y$1:$AB$50,19)","v":"Thickness cabin wall"},null,null,null,null,null,null,null,null,"mm",null,null,null,null,null,null,null,null,null,null,null,null,23,"Avstånd schaktvägg till insida korg","Distance shaft wall inside cabin","x","Kabineninnenkante-Schachtwand"]
[null,{"$f":"HLOOKUP($P$1,$Y$1:$AB$50,20)","v":"Thickness of floor"},null,null,null,null,null,null,null,null,"mm","max.60mm",null,null,null,null,null,null,null,null,null,null,null,24,"Avstånd schaktvägg till c/c gejd","Distance shaft wall c/c guide","x","F-Maß"]
[null,{"$f":"HLOOKUP($P$1,$Y$1:$AB$50,21)","v":"Thickness of cabin roof"},null,null,null,null,null,null,null,null,"mm",null,null,null,null,null,null,null,null,null,null,null,null,25,"Avstånd c/c gejd till insida korg","Distance c/c guide to inside cabin","x","Schiene-Kabineninnenkante"]
[null,null,null,null,null,null,null,null,null,null,null,null,null,null,null,null,null,null,null,null,null,null,null,26,"Typ av gejd","Type of Guide","x","Schiene"]
[{"$f":"HLOOKUP($P$1,$Y$1:$AB$50,22)","v":"OTHER:"},{"$f":"HLOOKUP($P$1,$Y$1:$AB$50,23)","v":"Distance shaft wall inside cabin"},null,null,null,null,null,null,"C1=",null,"mm","max. 360mm",null,null,null,null,null,null,null,null,null,null,null,27,"Avstånd mellan gejdfäste","Distance between guide brackets","x","Schienenbügelabstand"]
[null,{"$f":"HLOOKUP($P$1,$Y$1:$AB$50,24)","v":"Distance shaft wall c/c guide"},null,null,null,null,null,null,"F=",null,"mm","max. 240mm",null,null,null,null,null,null,null,null,null,null,null,28,"Typ av cylinder","Type of Piston","x","Hebertyp"]
[null,{"$f":"HLOOKUP($P$1,$Y$1:$AB$50,25)","v":"Distance c/c guide to inside cabin"},null,null,null,null,null,null,null,{"$f":"J27-J28","v":0},"mm","std. 115mm when wall 25mm",null,null,null,null,null,null,null,null,null,null,null,29,"Cylinder längd ","Closed jack Length","Longueur Vérin rentré","Grundlänge Heber"]
[null,{"$f":"HLOOKUP($P$1,$Y$1:$AB$50,26)","v":"Type of Guide"},null,null,null,null,null,null,null,null,null,"T90/B or T125/B",null,null,null,null,null,null,null,null,null,null,null,30,"Total Slaglängd","Total Piston stroke","Course total vérin","Kolbenhub"]
[null,{"$f":"HLOOKUP($P$1,$Y$1:$AB$50,27)","v":"Distance between guide brackets"},null,null,null,null,null,null,null,null,"mm",null,null,null,null,null,null,null,null,null,null,null,null,31,"Delad cylinder","Piston in 2 pieces",null,"Heber geteilt"]
[null,{"$f":"HLOOKUP($P$1,$Y$1:$AB$50,28)","v":"Type of Piston"},null,null,null,null,null,null,null,null,null,"80bis, 90bis, 1008SL",null,null,null,null,null,null,null,null,null,null,null,32,"Slanglängd","Length flex. Tube",null,"Druckschlauch"]
[null,{"$f":"HLOOKUP($P$1,$Y$1:$AB$50,29)","v":"Closed jack Length"},null,null,null,null,null,null,"CL=",null,"mm",null,null,null,null,null,null,null,null,null,null,null,null,33,"Antal Start per timme","Travels per hour",null,"Fahrtspiele; 1/h"]
[null,{"$f":"HLOOKUP($P$1,$Y$1:$AB$50,30)","v":"Total Piston stroke"},null,null,null,null,null,null,"Lp=",null,"mm",null,null,null,null,null,null,null,null,null,null,null,null,34,"Rörligt kjolskydd","Moveble toeguard",null,"Klappschürzen"]
[null,{"$f":"HLOOKUP($P$1,$Y$1:$AB$50,31)","v":"Piston in 2 pieces"},null,null,null,null,null,null,null,null,null,null,null,null,null,null,null,null,null,null,null,null,null,35,"AGGREGAT:","POWER UNIT:",null,"AGGREGAT:"]
[null,{"$f":"HLOOKUP($P$1,$Y$1:$AB$50,32)","v":"Length flex. Tube"},null,null,null,null,null,null,null,null,"mm",null,null,null,null,null,null,null,null,null,null,null,null,36,"MRL MC","MRL MC","MRL MC","MRL+MC"]
[null,{"$f":"HLOOKUP($P$1,$Y$1:$AB$50,33)","v":"Travels per hour"},null,null,null,null,null,null,null,null,"1/h",null,null,null,null,null,null,null,null,null,null,null,null,37,"MRL MC inkl. uppsamlingskärl","MRL MC with oil collector",null,"MRL+MC mit Ölbarriere"]
[null,{"$f":"HLOOKUP($P$1,$Y$1:$AB$50,34)","v":"Moveble toeguard"},null,null,null,null,null,null,null,null,"No.",null,null,null,null,null,null,null,null,null,null,null,null,38,"Ventil","Valve",null,"Steuerblock"]
[null,null,null,null,null,null,null,null,null,null,null,null,null,null,null,null,null,null,null,null,null,null,null,39,"Motorspänning","Motor Voltage",null,"Motorspannung"]
[{"$f":"HLOOKUP($P$1,$Y$1:$AB$50,35)","v":"POWER UNIT:"},null,null,null,null,null,null,null,null,null,null,null,null,null,null,null,null,null,null,null,null,null,null,40,"GMV Soft start","GMV Soft starter",null,"GMV Sanftanlauf"]
[null,null,{"$f":"HLOOKUP($P$1,$Y$1:$AB$50,36)","v":"MRL MC"},null,null,null,null,null,null,null,null,null,null,null,null,null,null,null,null,null,null,null,null,41,"Oljevärmare 500W","Oil heater 500W",null,"Tankheizung 500W"]
[null,null,{"$f":"HLOOKUP($P$1,$Y$1:$AB$50,37)","v":"MRL MC with oil collector"},null,null,null,null,null,null,null,null,null,null,null,null,null,null,null,null,null,null,null,null,42,"Elektrisk nödsänkning NGV","Electrical emergency lowering NGV",null,"elektrischer Notablass NGV"]
[null,null,{"$f":"HLOOKUP($P$1,$Y$1:$AB$50,38)","v":"Valve"},null,"3010/S",null,"3010/S-DLV A3",null,"NGV-A3",null,null,null,null,null,null,null,null,null,null,null,null,null,null,43,"Programmeringsutrustning NGV","Programming tool NGV",null,"Programmiergerät NGV"]
[null,null,{"$f":"HLOOKUP($P$1,$Y$1:$AB$50,39)","v":"Motor Voltage"},null,"400/690V",null,"230/400V",null,"415/720V",null,null,null,null,null,null,null,null,null,null,null,null,null,null,44,"Nivåglas","Oillevel indicator",null,"Ölstandsanzeige"]
[null,null,{"$f":"HLOOKUP($P$1,$Y$1:$AB$50,40)","v":"GMV Soft starter"},null,null,null,null,null,null,null,null,null,null,null,null,null,null,null,null,null,null,null,null,45,"Ljuddämpningsmaterial","Noise reduce material in power unit",null,"Geräuschschutzkit Silenzio"]
[null,null,{"$f":"HLOOKUP($P$1,$Y$1:$AB$50,41)","v":"Oil heater 500W"},null,null,null,null,null,null,null,null,null,null,null,null,null,null,null,null,null,null,null,null,46,"Förberett oljekylare","Pre arranged for oil cooler",null,"Öl-Kühler-Anschlüsse"]
[null,null,{"$f":"HLOOKUP($P$1,$Y$1:$AB$50,42)","v":"Electrical emergency lowering NGV"},null,null,null,"12V",null,"24V",null,null,null,null,null,null,null,null,null,null,null,null,null,null,47,"Oljekylare","Oil cooler",null,"Ölkühler"]
[null,null,{"$f":"HLOOKUP($P$1,$Y$1:$AB$50,43)","v":"Programming tool NGV"},null,null,null,null,null,null,null,null,null,null,null,null,null,null,null,null,null,null,null,null,48,"Min. tryckbrytare 3010","Min. pressure switch 3010",null,"Minimaldruckschalter 3010"]
[null,null,{"$f":"HLOOKUP($P$1,$Y$1:$AB$50,44)","v":"Oillevel indicator"},null,null,null,null,null,null,null,null,null,null,null,null,null,null,null,null,null,null,null,null,49,"Mobil Hydraulolja Des 46","Mobil Hydraulic oil Des 46",null,"Hydrauliköl ISO VG46"]
[null,null,{"$f":"HLOOKUP($P$1,$Y$1:$AB$50,45)","v":"Noise reduce material in power unit"},null,null,null,null,null,null,null,null,null,null,null,null,null,null,null,null,null,null,null,null,50,"Mobil Syndraulic (Eco)",{"$f":"Y50","v":"Mobil Syndraulic (Eco)"},null,"Biofluid F46"]
[null,null,{"$f":"HLOOKUP($P$1,$Y$1:$AB$50,46)","v":"Pre arranged for oil cooler"},null,null,null,null,null,null,null,null,null,null,null,null,null,null,null,null,null,null,null,null,51,"BERÄKNING AV CYLINDER, KNÄCKNING:","CALCULAION OF EFFECTIVE BUCKLING FORCE:","CALCULAION OF EFFECTIVE BUCKLING FORCE:","Berechnung Knickung:"]
[null,null,{"$f":"HLOOKUP($P$1,$Y$1:$AB$50,47)","v":"Oil cooler"},null,null,null,"6000Kcal/h",null,"14000Kcal/h",null,null,null,null,null,null,null,null,null,null,null,null,null,null,52,"enl. EN 81","acc. To  EN 81","acc. To  EN 81","nach EN81-2"]
[null,null,{"$f":"HLOOKUP($P$1,$Y$1:$AB$50,48)","v":"Min. pressure switch 3010"},null,null,null,null,null,null,null,null,null,null,null,null,null,null,null,null,null,null,null,null,53,"Offert förfrågan","ENQUIRY FORM","ENQUIRY FORM","ANFRAGEBLATT"]
[null,null,{"$f":"HLOOKUP($P$1,$Y$1:$AB$50,49)","v":"Mobil Hydraulic oil Des 46"},null,null,null,null,null,null,null,null,null,null,null,null,null,null,null,null,null,null,null,null,54,"BIG SPACE BÄRRAMSPAKET","BIG SPACE CAR FRAME KIT","BIG SPACE CAR FRAME KIT","BIG SPACE BAUSATZ"]
[null,null,{"$f":"HLOOKUP($P$1,$Y$1:$AB$50,50)","v":"Mobil Syndraulic (Eco)"},null,null,null,null,null,null,null,null,null,null,null,null,null,null,null,null,null,null,null,null,55,"Fax: +46 472-456 99","Fax: +46 472-456 99","?","Fax: +49 89 903 6191"]
[null,null,null,null,null,null,null,null,null,null,null,{"$f":"HLOOKUP($P$1,$Y$1:$AB$56,55)","v":"Fax: +46 472-456 99"},null,null,null,null,null,null,null,null,null,null,null,56,"eMail: info@gmv.se","eMail: info@gmv.se","?","Mail: verkauf@oildinamic.de"]
[null,null,null,null,null,null,null,null,null,null,null,{"$f":"HLOOKUP($P$1,$Y$1:$AB$56,56)","v":"eMail: info@gmv.se"}]